[Event "28th Hit Open-A 2024"]
[Site "Nova Gorica"]
[Date "2024.02.01"]
[Round "8.25"]
[White "Centrih, Aleks"]
[Black "Mazzi, Leonardo"]
[Result "1-0"]
[ECO "B50"]
[WhiteElo "2082"]
[BlackElo "1647"]
[Annotator "ChessBase"]
[PlyCount "119"]
[EventDate "2024.01.22"]
[EventType "swiss"]
[EventCountry "SLO"]
[SourceTitle "playchess.com"]
[Source "ChessBase"]
[SourceQuality "1"]
[TimeControl "5400+30"]

1. e4 {[%emt 0:00:07]} c5 {[%emt 0:01:08]} 2. Nf3 {[%emt 0:00:22]} d6 {[%emt 0:00:12]} 3. Bc4 {[%emt 0:00:08]} a6 {[%emt 0:00:40]} 4. d3 {[%emt 0:01:07]} e6 {[%emt 0:00:27]} 5. O-O {[%emt 0:03:26]} Be7 {[%emt 0:01:03]} 6. c3 {[%emt 0:01:32]} b5 {[%emt 0:00:50]} 7. Bb3 {[%emt 0:00:06]} Nf6 {[%emt 0:00:27]} 8. Re1 {[%emt 0:00:36]} Bb7 {[%emt 0:00:37]} 9. Nbd2 {[%emt 0:00:14]} Nbd7 {[%emt 0:00:55]} 10. a4 {[%emt 0:01:29]} O-O {[%emt 0:00:53]} 11. Bc2 {[%emt 0:02:07]} Qc7 {[%emt 0:00:48]} 12. Nf1 {[%emt 0:01:59]} Rfc8 {[%emt 0:01:19]} 13. h3 {[%emt 0:04:06]} Ne5 {[%emt 0:01:00]} 14. Ng3 {[%emt 0:07:04]} h6 {[%emt 0:01:12]} 15. Nh2 {[%emt 0:15:16]} Bf8 {[%emt 0:01:51]} 16. f4 {[%emt 0:02:11]} Nc6 {[%emt 0:00:49]} 17. Rf1 {[%emt 0:05:05]} d5 {[%emt 0:03:55]} 18. e5 {[%emt 0:00:16]} Nd7 {[%emt 0:00:05]} 19. Qg4 {[%emt 0:12:03]} d4 {[%emt 0:01:10]} 20. Nf3 {[%emt 0:03:49]} Re8 {[%emt 0:03:46]} 21. Ne4 {[%emt 0:07:41]} Qd8 {[%emt 0:09:41]} 22. Bd2 {[%emt 0:06:24]} Rc8 {[%emt 0:04:48]} 23. axb5 {[%emt 0:00:41]} axb5 {[%emt 0:00:07]} 24. Be1 {[%emt 0:02:10]} Rc7 {[%emt 0:07:17]} 25. Bh4 {[%emt 0:01:16]} Qb8 {[%emt 0:01:22]} 26. Rae1 {[%emt 0:09:40]} b4 {[%emt 0:02:33]} 27. c4 {[%emt 0:00:53]} Ne7 {[%emt 0:01:18]} 28. Ba4 {[%emt 0:04:31]} Bc6 {[%emt 0:00:49]} 29. Bxc6 {[%emt 0:00:33]} Rxc6 {[%emt 0:00:01]} 30. Bxe7 {[%emt 0:00:46]} Rxe7 {[%emt 0:02:56]} 31. Ra1 {[%emt 0:00:50]} Re8 {[%emt 0:05:48]} 32. Ra5 {[%emt 0:01:04]} Qc7 {[%emt 0:01:35]} 33. Rfa1 {[%emt 0:00:07]} Rb6 {[%emt 0:00:14]} 34. Nfd2 {[%emt 0:01:20]} Rc8 {[%emt 0:01:50]} 35. Nb3 {[%emt 0:00:51]} Rb7 {[%emt 0:02:06]} 36. Qf3 {[%emt 0:01:40]} Qc6 {[%emt 0:01:40]} 37. Kh1 {[%emt 0:01:50]} Rb6 {[%emt 0:01:04]} 38. Kh2 {[%emt 0:01:10]} Qc7 {[%emt 0:01:12]} 39. Ra7 {[%emt 0:00:08]} Qd8 {[%emt 0:01:19]} 40. Qg4 {[%emt 0:00:21]} Kh8 {[%emt 0:00:35]} 41. Qh5 {[%emt 0:02:17]} Kg8 {[%emt 0:01:08]} 42. Nbd2 {[%emt 0:01:14]} Rc7 {[%emt 0:00:30]} 43. R7a5 {[%emt 0:00:41]} Rc8 {[%emt 0:01:25]} 44. Nf3 {[%emt 0:00:11]} g6 {[%emt 0:02:31]} 45. Qg4 {[%emt 0:00:13]} Be7 {[%emt 0:01:23]} 46. h4 {[%emt 0:01:16]} h5 {[%emt 0:00:02]} 47. Qg3 {[%emt 0:00:11]} Kg7 {[%emt 0:00:55]} 48. Nfg5 {[%emt 0:00:26]} Rbb8 {[%emt 0:01:06]} 49. Qe1 {[%emt 0:00:24]} Ra8 {[%emt 0:00:39]} 50. Ra7 {[%emt 0:00:30]} Nb6 {[%emt 0:01:29]} 51. Nd6 {[%emt 0:00:39]} Rxa7 {[%emt 0:03:07]} 52. Rxa7 {[%emt 0:00:02]} Bxg5 {[%emt 0:02:45]} 53. Rxf7+ {[%emt 0:00:17]} Kg8 {[%emt 0:00:12]} 54. hxg5 {[%emt 0:01:38]} Rc7 {[%emt 0:01:17]} 55. Rf6 {[%emt 0:00:07]} Kh7 {[%emt 0:00:38]} 56. Qe4 {[%emt 0:00:30]} Qg8 {[%emt 0:00:48]} 57. g4 {[%emt 0:00:42]} hxg4 {[%emt 0:00:47]} 58. Kg3 {[%emt 0:00:39]} Qg7 {[%emt 0:01:26]} 59. Ne8 {[%emt 0:00:21]} Qe7 {[%emt 0:01:40]} 60. Qxg6+ {[%emt 0:00:25]} 1-0

[Event "28th Hit Open-A 2024"]
[Site "Nova Gorica"]
[Date "2024.02.01"]
[Round "8.26"]
[White "Jalovec, Igor"]
[Black "Mestek, Igor"]
[Result "1-0"]
[ECO "B12"]
[WhiteElo "1703"]
[BlackElo "2080"]
[Annotator "NA"]
[PlyCount "135"]
[EventDate "2024.01.22"]
[EventType "swiss"]
[EventCountry "SLO"]
[SourceTitle "playchess.com"]
[Source "ChessBase"]
[SourceQuality "1"]
[TimeControl "5400+30"]

1. e4 {[%emt 0:00:04]} c6 {[%emt 0:01:05]} 2. Nf3 {[%emt 0:00:13]} Na6 {[%emt 0:00:10]} 3. d4 {[%emt 0:01:05]} g6 {[%emt 0:00:31]} 4. Bxa6 {[%emt 0:02:42]} Qa5+ {[%emt 0:00:18]} 5. Nc3 {[%emt 0:01:57]} Qxa6 {[%emt 0:00:09]} 6. Be3 {[%emt 0:00:29]} Nf6 {[%emt 0:01:38]} 7. h3 {[%emt 0:00:14]} d5 {[%emt 0:03:49]} 8. e5 {[%emt 0:04:18]} Ng8 {[%emt 0:02:02]} 9. Ne2 {[%emt 0:01:05]} Bg7 {[%emt 0:04:11]} 10. O-O {[%emt 0:01:01]} Nh6 {[%emt 0:03:02]} 11. Ng3 {[%emt 0:02:46]} Nf5 {[%emt 0:01:51]} 12. Nxf5 {[%emt 0:00:59]} Bxf5 {[%emt 0:00:08]} 13. Nh4 {[%emt 0:00:45]} Bd7 {[%emt 0:00:43]} 14. f4 {[%emt 0:00:30]} e6 {[%emt 0:10:33]} 15. Nf3 {[%emt 0:03:52]} Bf8 {[%emt 0:00:52]} 16. c3 {[%emt 0:03:12]} b6 {[%emt 0:01:25]} 17. Bf2 {[%emt 0:09:40]} Be7 {[%emt 0:07:55]} 18. Qe1 {[%emt 0:04:50]} Qc8 {[%emt 0:05:09]} 19. Bh4 {[%emt 0:04:16]} Qd8 {[%emt 0:00:28]} 20. Bxe7 {[%emt 0:00:06]} Qxe7 {[%emt 0:00:07]} 21. Nh2 {[%emt 0:01:37]} h5 {[%emt 0:01:40]} 22. Nf3 {[%emt 0:00:06]} Bc8 {[%emt 0:05:32]} 23. Qe3 {[%emt 0:01:29]} Bb7 {[%emt 0:02:49]} 24. Rfc1 {[%emt 0:01:13]} O-O {[%emt 0:05:57]} 25. f5 {[%emt 0:08:15]} exf5 {[%emt 0:00:33]} 26. Qh6 {[%emt 0:00:08]} f6 {[%emt 0:00:25]} 27. Qxg6+ {[%emt 0:00:41]} Qg7 {[%emt 0:00:07]} 28. Qxf5 {[%emt 0:03:12]} fxe5 {[%emt 0:00:53]} 29. Qxe5 {[%emt 0:00:11]} Rae8 {[%emt 0:03:35]} 30. Qxg7+ {[%emt 0:00:53]} Kxg7 {[%emt 0:00:08]} 31. Re1 {[%emt 0:00:07]} Bc8 {[%emt 0:04:37]} 32. Re5 {[%emt 0:03:13]} Rxe5 {[%emt 0:00:46]} 33. Nxe5 {[%emt 0:00:08]} c5 {[%emt 0:00:25]} 34. Rf1 {[%emt 0:00:17]} Rxf1+ {[%emt 0:00:09]} 35. Kxf1 {[%emt 0:00:03]} cxd4 {[%emt 0:00:40]} 36. cxd4 {[%emt 0:00:04]} Kf6 {[%emt 0:00:08]} 37. Kf2 {[%emt 0:00:11]} Kf5 {[%emt 0:00:28]} 38. Kf3 {[%emt 0:01:09]} Kg5 {[%emt 0:01:35]} 39. Nf7+ {[%emt 0:00:57]} Kf6 {[%emt 0:00:16]} 40. Nd6 {[%emt 0:00:55]} Be6 {[%emt 0:00:40]} 41. Kf4 {[%emt 0:00:33]} Bd7 {[%emt 0:00:28]} 42. g4 {[%emt 0:00:19]} Kg6 {[%emt 0:00:36]} 43. Nf5 {[%emt 0:01:29]} hxg4 {[%emt 0:00:08]} 44. hxg4 {[%emt 0:00:08]} Be6 {[%emt 0:00:34]} 45. Ke5 {[%emt 0:02:40]} Kf7 {[%emt 0:01:08]} 46. b3 {[%emt 0:01:18]} a5 {[%emt 0:00:16]} 47. a3 {[%emt 0:00:49]} b5 {[%emt 0:00:32]} 48. Nd6+ {[%emt 0:00:25]} Ke7 {[%emt 0:00:08]} 49. Nxb5 {[%emt 0:01:38]} Bxg4 {[%emt 0:00:09]} 50. b4 {[%emt 0:01:27]} axb4 {[%emt 0:00:14]} 51. axb4 {[%emt 0:00:04]} Bf3 {[%emt 0:00:23]} 52. Nc3 {[%emt 0:00:07]} Kd7 {[%emt 0:00:20]} 53. Nxd5 {[%emt 0:00:04]} Be2 {[%emt 0:01:10]} 54. Nc3 {[%emt 0:00:11]} Bf1 {[%emt 0:00:18]} 55. d5 {[%emt 0:00:11]} Bc4 {[%emt 0:00:29]} 56. Kd4 {[%emt 0:00:09]} Bf1 {[%emt 0:00:11]} 57. Kc5 {[%emt 0:00:02]} Kc7 {[%emt 0:00:10]} 58. Ne4 {[%emt 0:00:52]} Bg2 {[%emt 0:00:13]} 59. Nf6 {[%emt 0:00:08]} Bh3 {[%emt 0:00:16]} 60. d6+ {[%emt 0:01:20]} Kd8 {[%emt 0:02:03]} 61. Kb6 {[%emt 0:00:42]} Bg2 {[%emt 0:00:17]} 62. Ka5 {[%emt 0:01:03]} Bf3 {[%emt 0:00:08]} 63. b5 {[%emt 0:00:19]} Bg2 {[%emt 0:00:07]} 64. b6 {[%emt 0:00:20]} Bc6 {[%emt 0:00:09]} 65. Ka6 {[%emt 0:00:14]} Bf3 {[%emt 0:00:08]} 66. d7 {[%emt 0:00:19]} Be2+ {[%emt 0:01:08]} 67. Ka7 {[%emt 0:00:07]} Ke7 {[%emt 0:00:28]} 68. b7 {[%emt 0:00:06]} 1-0

[Event "28th Hit Open-A 2024"]
[Site "Nova Gorica"]
[Date "2024.02.01"]
[Round "8.27"]
[White "Capaliku, Aleks"]
[Black "Belyaletdinov, Leonard"]
[Result "1-0"]
[ECO "A03"]
[WhiteElo "1913"]
[BlackElo "1581"]
[Annotator "NA"]
[PlyCount "65"]
[EventDate "2024.01.22"]
[EventType "swiss"]
[EventCountry "SLO"]
[SourceTitle "playchess.com"]
[Source "ChessBase"]
[SourceQuality "1"]
[TimeControl "5400+30"]

1. f4 {[%emt 0:00:03]} d5 {[%emt 0:00:05]} 2. b3 {[%emt 0:00:03]} Nf6 {[%emt 0:00:09]} 3. Nf3 {[%emt 0:00:07]} e6 {[%emt 0:00:10]} 4. e3 {[%emt 0:00:04]} b6 {[%emt 0:00:09]} 5. Bb5+ {[%emt 0:00:08]} c6 {[%emt 0:00:23]} 6. Be2 {[%emt 0:00:02]} Bd6 {[%emt 0:00:28]} 7. Bb2 {[%emt 0:00:11]} Bb7 {[%emt 0:00:17]} 8. O-O {[%emt 0:00:03]} Nbd7 {[%emt 0:00:08]} 9. Ne5 {[%emt 0:01:09]} Qc7 {[%emt 0:00:34]} 10. d4 {[%emt 0:00:15]} Ne4 {[%emt 0:00:48]} 11. Nd2 {[%emt 0:00:19]} Nxd2 {[%emt 0:00:19]} 12. Qxd2 {[%emt 0:00:07]} Nf6 {[%emt 0:00:03]} 13. Bd3 {[%emt 0:02:20]} O-O-O {[%emt 0:00:47]} 14. c4 {[%emt 0:00:24]} Ne4 {[%emt 0:03:42]} 15. Qe2 {[%emt 0:13:24]} f6 {[%emt 0:01:50]} 16. Nf3 {[%emt 0:03:03]} Kb8 {[%emt 0:00:50]} 17. a3 {[%emt 0:02:44]} g5 {[%emt 0:01:26]} 18. c5 {[%emt 0:24:20]} bxc5 {[%emt 0:00:07]} 19. dxc5 {[%emt 0:00:16]} Bxc5 {[%emt 0:01:24]} 20. fxg5 {[%emt 0:04:24]} Rhf8 {[%emt 0:02:19]} 21. gxf6 {[%emt 0:04:12]} Qb6 {[%emt 0:02:09]} 22. Nd4 {[%emt 0:06:09]} Ng5 {[%emt 0:32:21]} 23. b4 {[%emt 0:14:03]} Bd6 {[%emt 0:01:19]} 24. h4 {[%emt 0:04:57]} e5 {[%emt 0:01:07]} 25. hxg5 {[%emt 0:03:26]} exd4 {[%emt 0:00:06]} 26. Bxd4 {[%emt 0:00:19]} Qc7 {[%emt 0:00:03]} 27. Qh5 {[%emt 0:01:21]} Be5 {[%emt 0:03:12]} 28. Qxh7 {[%emt 0:02:05]} Rf7 {[%emt 0:01:17]} 29. Bxe5 {[%emt 0:00:49]} Qxe5 {[%emt 0:00:33]} 30. Qh2 {[%emt 0:00:17]} Qxh2+ {[%emt 0:00:34]} 31. Kxh2 {[%emt 0:00:01]} Rh8+ {[%emt 0:00:14]} 32. Kg1 {[%emt 0:01:49]} Bc8 {[%emt 0:01:11]} 33. g6 {[%emt 0:00:58]} 1-0

[Event "28th Hit Open-A 2024"]
[Site "Nova Gorica"]
[Date "2024.02.01"]
[Round "8.28"]
[White "Vodnik, Val"]
[Black "Garsky, Vladyslav"]
[Result "1/2-1/2"]
[ECO "E67"]
[WhiteElo "1661"]
[BlackElo "2186"]
[Annotator "ChessBase"]
[PlyCount "73"]
[EventDate "2024.01.22"]
[EventType "swiss"]
[EventCountry "SLO"]
[SourceTitle "playchess.com"]
[Source "ChessBase"]
[SourceQuality "1"]
[TimeControl "5400+30"]

1. d4 {[%emt 0:00:03]} Nf6 {[%emt 0:06:03]} 2. c4 {[%emt 0:00:04]} g6 {[%emt 0:00:10]} 3. Nc3 {[%emt 0:00:04]} Bg7 {[%emt 0:00:07]} 4. e4 {[%emt 0:00:04]} d6 {[%emt 0:00:44]} 5. Nf3 {[%emt 0:00:06]} O-O {[%emt 0:02:14]} 6. g3 {[%emt 0:00:05]} Nbd7 {[%emt 0:00:06]} 7. Bg2 {[%emt 0:00:06]} e5 {[%emt 0:00:17]} 8. O-O {[%emt 0:00:10]} a5 {[%emt 0:06:23]} 9. h3 {[%emt 0:07:34]} Re8 {[%emt 0:01:54]} 10. Be3 {[%emt 0:00:29]} exd4 {[%emt 0:02:39]} 11. Nxd4 {[%emt 0:00:39]} Nc5 {[%emt 0:00:39]} 12. Qc2 {[%emt 0:03:16]} Qe7 {[%emt 0:14:56]} 13. Bg5 {[%emt 0:10:47]} c6 {[%emt 0:01:36]} 14. Rfe1 {[%emt 0:05:48]} Qc7 {[%emt 0:04:04]} 15. Rad1 {[%emt 0:05:27]} Ne6 {[%emt 0:04:24]} 16. Be3 {[%emt 0:10:02]} Bd7 {[%emt 0:04:16]} 17. Qd2 {[%emt 0:03:36]} Rad8 {[%emt 0:04:13]} 18. b3 {[%emt 0:08:18]} Nc5 {[%emt 0:00:16]} 19. Bf4 {[%emt 0:02:22]} Nh5 {[%emt 0:02:07]} 20. Be3 {[%emt 0:03:16]} Ne6 {[%emt 0:04:25]} 21. Nxe6 {[%emt 0:03:44]} Rxe6 {[%emt 0:01:16]} 22. Na4 {[%emt 0:00:09]} c5 {[%emt 0:01:12]} 23. Nc3 {[%emt 0:00:05]} Bc6 {[%emt 0:00:59]} 24. Nd5 {[%emt 0:01:13]} Bxd5 {[%emt 0:01:23]} 25. Qxd5 {[%emt 0:00:01]} Nf6 {[%emt 0:00:28]} 26. Qd3 {[%emt 0:00:14]} Nd7 {[%emt 0:01:56]} 27. f4 {[%emt 0:01:33]} Nb8 {[%emt 0:02:36]} 28. e5 {[%emt 0:06:20]} Nc6 {[%emt 0:01:16]} 29. Bxc6 {[%emt 0:00:46]} Qxc6 {[%emt 0:00:12]} 30. Kf2 {[%emt 0:04:44]} Bf8 {[%emt 0:04:08]} 31. Qd5 {[%emt 0:00:44]} Qxd5 {[%emt 0:01:06]} 32. Rxd5 {[%emt 0:00:07]} Rde8 {[%emt 0:00:38]} 33. exd6 {[%emt 0:02:20]} Bxd6 {[%emt 0:00:05]} 34. Bd2 {[%emt 0:00:21]} Rxe1 {[%emt 0:01:19]} 35. Bxe1 {[%emt 0:00:01]} Be7 {[%emt 0:02:54]} 36. Bc3 {[%emt 0:05:21]} Rd8 {[%emt 0:01:34]} 37. Rxd8+ {[%emt 0:00:36]} 1/2-1/2

[Event "28th Hit Open-A 2024"]
[Site "Nova Gorica"]
[Date "2024.02.01"]
[Round "8.30"]
[White "Trybus, Daniel"]
[Black "Petrosino, Germano"]
[Result "1-0"]
[ECO "C41"]
[WhiteElo "2039"]
[BlackElo "1715"]
[Annotator "NA"]
[PlyCount "59"]
[EventDate "2024.01.22"]
[EventType "swiss"]
[EventCountry "SLO"]
[SourceTitle "playchess.com"]
[Source "ChessBase"]
[SourceQuality "1"]
[TimeControl "5400+30"]

1. e4 {[%emt 0:00:01]} d6 {[%emt 0:00:10]} 2. d4 {[%emt 0:00:07]} Nf6 {[%emt 0:00:18]} 3. Nc3 {[%emt 0:00:04]} e5 {[%emt 0:00:14]} 4. Nf3 {[%emt 0:00:48]} Nbd7 {[%emt 0:03:21]} 5. Rg1 {[%emt 0:00:09]} c6 {[%emt 0:00:46]} 6. g4 {[%emt 0:00:06]} h6 {[%emt 0:00:10]} 7. Be3 {[%emt 0:03:27]} Qa5 {[%emt 0:03:14]} 8. Qd2 {[%emt 0:03:33]} b5 {[%emt 0:02:48]} 9. Bd3 {[%emt 0:03:03]} Ba6 {[%emt 0:04:39]} 10. h4 {[%emt 0:09:39]} c5 {[%emt 0:10:11]} 11. dxe5 {[%emt 0:01:21]} dxe5 {[%emt 0:01:59]} 12. Nxb5 {[%emt 0:01:55]} Qxd2+ {[%emt 0:00:23]} 13. Nxd2 {[%emt 0:00:10]} Bxb5 {[%emt 0:00:31]} 14. Bxb5 {[%emt 0:00:09]} Rb8 {[%emt 0:00:28]} 15. Ba4 {[%emt 0:00:28]} Rb4 {[%emt 0:05:07]} 16. Bxd7+ {[%emt 0:01:32]} Kxd7 {[%emt 0:03:21]} 17. O-O-O {[%emt 0:00:22]} Ke6 {[%emt 0:04:07]} 18. f3 {[%emt 0:01:05]} Be7 {[%emt 0:01:13]} 19. b3 {[%emt 0:00:45]} a5 {[%emt 0:04:26]} 20. a4 {[%emt 0:00:33]} Nd7 {[%emt 0:00:28]} 21. h5 {[%emt 0:00:11]} Nb8 {[%emt 0:02:00]} 22. Nc4 {[%emt 0:00:20]} Nc6 {[%emt 0:00:32]} 23. Rd5 {[%emt 0:01:22]} Rhb8 {[%emt 0:03:47]} 24. Bxc5 {[%emt 0:03:38]} Rxc4 {[%emt 0:00:07]} 25. bxc4 {[%emt 0:01:11]} Bg5+ {[%emt 0:01:37]} 26. Kd1 {[%emt 0:00:03]} Be7 {[%emt 0:01:58]} 27. Bxe7 {[%emt 0:06:04]} Rb1+ {[%emt 0:01:39]} 28. Kd2 {[%emt 0:00:01]} Rxg1 {[%emt 0:01:05]} 29. Bc5 {[%emt 0:00:03]} Rg2+ {[%emt 0:00:53]} 30. Ke3 {[%emt 0:00:27]} 1-0

[Event "28th Hit Open-A 2024"]
[Site "Nova Gorica"]
[Date "2024.02.01"]
[Round "8.31"]
[White "Labrovic, Jakov"]
[Black "Trybus, Dominika"]
[Result "1-0"]
[ECO "A05"]
[WhiteElo "1925"]
[BlackElo "1530"]
[Annotator "ChessBase"]
[PlyCount "89"]
[EventDate "2024.01.22"]
[EventType "swiss"]
[EventCountry "SLO"]
[SourceTitle "playchess.com"]
[Source "ChessBase"]
[SourceQuality "1"]
[TimeControl "5400+30"]

1. Nf3 {[%emt 0:00:01]} Nf6 {[%emt 0:00:08]} 2. g3 {[%emt 0:00:04]} g6 {[%emt 0:00:14]} 3. Bg2 {[%emt 0:00:06]} Bg7 {[%emt 0:00:08]} 4. b3 {[%emt 0:00:34]} d6 {[%emt 0:00:50]} 5. Bb2 {[%emt 0:00:12]} e5 {[%emt 0:00:23]} 6. d3 {[%emt 0:00:17]} Nc6 {[%emt 0:00:50]} 7. e4 {[%emt 0:00:20]} Bg4 {[%emt 0:01:26]} 8. Nbd2 {[%emt 0:00:19]} O-O {[%emt 0:01:11]} 9. h3 {[%emt 0:00:09]} Bd7 {[%emt 0:00:46]} 10. Qe2 {[%emt 0:02:24]} a5 {[%emt 0:00:56]} 11. a3 {[%emt 0:00:34]} b5 {[%emt 0:03:57]} 12. O-O {[%emt 0:00:11]} Ne8 {[%emt 0:01:44]} 13. Nh4 {[%emt 0:03:19]} f5 {[%emt 0:05:27]} 14. exf5 {[%emt 0:00:21]} gxf5 {[%emt 0:00:10]} 15. f4 {[%emt 0:11:19]} exf4 {[%emt 0:06:51]} 16. Bd5+ {[%emt 0:00:18]} Kh8 {[%emt 0:01:59]} 17. Qh5 {[%emt 0:01:51]} Bxb2 {[%emt 0:05:15]} 18. Ng6+ {[%emt 0:00:16]} Kg7 {[%emt 0:00:10]} 19. Nxf8 {[%emt 0:00:14]} Nf6 {[%emt 0:20:07]} 20. Qf7+ {[%emt 0:00:41]} Kh8 {[%emt 0:00:38]} 21. Nxd7 {[%emt 0:01:15]} Nxd5 {[%emt 0:01:18]} 22. Qxd5 {[%emt 0:01:20]} Qxd7 {[%emt 0:00:06]} 23. Rae1 {[%emt 0:04:38]} Rg8 {[%emt 0:02:12]} 24. g4 {[%emt 0:11:02]} fxg4 {[%emt 0:05:30]} 25. Rxf4 {[%emt 0:00:53]} gxh3+ {[%emt 0:00:55]} 26. Kh1 {[%emt 0:00:38]} Be5 {[%emt 0:06:28]} 27. Qf7 {[%emt 0:37:11]} Qd8 {[%emt 0:10:04]} 28. Rf5 {[%emt 0:05:59]} Nd4 {[%emt 0:05:24]} 29. Rh5 {[%emt 0:02:46]} Rg7 {[%emt 0:00:32]} 30. Qd5 {[%emt 0:01:37]} c6 {[%emt 0:04:58]} 31. Qe4 {[%emt 0:00:47]} Nxc2 {[%emt 0:01:36]} 32. Rf1 {[%emt 0:00:37]} Nd4 {[%emt 0:00:24]} 33. Rxh3 {[%emt 0:00:36]} Qg8 {[%emt 0:00:41]} 34. a4 {[%emt 0:02:27]} Rg4 {[%emt 0:01:33]} 35. Qe1 {[%emt 0:02:39]} Qd5+ {[%emt 0:02:01]} 36. Ne4 {[%emt 0:01:07]} Ne6 {[%emt 0:01:59]} 37. Qxa5 {[%emt 0:04:52]} Nf4 {[%emt 0:00:40]} 38. Rxf4 {[%emt 0:02:44]} Bxf4 {[%emt 0:00:42]} 39. Qd8+ {[%emt 0:00:11]} Rg8 {[%emt 0:00:57]} 40. Qf6+ {[%emt 0:00:14]} Rg7 {[%emt 0:00:32]} 41. Qxf4 {[%emt 0:00:15]} Rf7 {[%emt 0:00:11]} 42. Qxd6 {[%emt 0:02:10]} Qf5 {[%emt 0:00:14]} 43. Qd4+ {[%emt 0:00:23]} Rg7 {[%emt 0:00:56]} 44. Qd8+ {[%emt 0:01:20]} Rg8 {[%emt 0:00:21]} 45. Qf6+ {[%emt 0:00:27]} 1-0

[Event "28th Hit Open-A 2024"]
[Site "Nova Gorica"]
[Date "2024.02.01"]
[Round "8.32"]
[White "Kukushkin, Ivan"]
[Black "Barbir, Petar"]
[Result "0-1"]
[ECO "B56"]
[WhiteElo "1890"]
[BlackElo "1738"]
[Annotator "NA"]
[PlyCount "124"]
[EventDate "2024.01.22"]
[EventType "swiss"]
[EventCountry "SLO"]
[SourceTitle "playchess.com"]
[Source "ChessBase"]
[SourceQuality "1"]
[TimeControl "5400+30"]

1. e4 {[%emt 0:13:36]} c5 {[%emt 0:00:08]} 2. Nf3 {[%emt 0:00:23]} d6 {[%emt 0:00:08]} 3. d4 {[%emt 0:00:16]} cxd4 {[%emt 0:00:06]} 4. Nxd4 {[%emt 0:00:02]} Nf6 {[%emt 0:00:09]} 5. Nc3 {[%emt 0:00:19]} a6 {[%emt 0:01:03]} 6. Nb3 {[%emt 0:01:05]} Nc6 {[%emt 0:00:37]} 7. Be2 {[%emt 0:01:39]} e6 {[%emt 0:00:35]} 8. g4 {[%emt 0:00:07]} Be7 {[%emt 0:01:13]} 9. g5 {[%emt 0:04:18]} Nd7 {[%emt 0:00:09]} 10. Be3 {[%emt 0:02:54]} b5 {[%emt 0:06:58]} 11. a3 {[%emt 0:01:55]} Bb7 {[%emt 0:02:12]} 12. Qd2 {[%emt 0:02:23]} Rc8 {[%emt 0:02:47]} 13. f4 {[%emt 0:01:20]} Nb6 {[%emt 0:11:12]} 14. Nd4 {[%emt 0:02:15]} h6 {[%emt 0:02:34]} 15. g6 {[%emt 0:01:54]} Bh4+ {[%emt 0:00:42]} 16. Kf1 {[%emt 0:01:12]} O-O {[%emt 0:03:16]} 17. Rg1 {[%emt 0:07:39]} Nxd4 {[%emt 0:02:24]} 18. Bxd4 {[%emt 0:02:56]} fxg6 {[%emt 0:01:54]} 19. Bg4 {[%emt 0:07:29]} e5 {[%emt 0:09:29]} 20. Bxc8 {[%emt 0:01:49]} Nc4 {[%emt 0:00:39]} 21. Be6+ {[%emt 0:00:07]} Kh7 {[%emt 0:00:12]} 22. Bxc4 {[%emt 0:00:21]} exd4 {[%emt 0:00:45]} 23. Ne2 {[%emt 0:00:52]} bxc4 {[%emt 0:00:30]} 24. Qxd4 {[%emt 0:00:35]} Qd7 {[%emt 0:03:17]} 25. Qe3 {[%emt 0:01:59]} g5 {[%emt 0:00:47]} 26. Rd1 {[%emt 0:02:03]} gxf4 {[%emt 0:01:52]} 27. Qf3 {[%emt 0:01:43]} g5 {[%emt 0:07:47]} 28. Nc3 {[%emt 0:01:28]} Kg6 {[%emt 0:02:46]} 29. Nd5 {[%emt 0:01:59]} h5 {[%emt 0:02:59]} 30. h3 {[%emt 0:02:10]} Bc8 {[%emt 0:03:08]} 31. Rh1 {[%emt 0:01:11]} Rf7 {[%emt 0:04:20]} 32. Nb6 {[%emt 0:00:27]} Qc6 {[%emt 0:01:22]} 33. Nxc8 {[%emt 0:00:07]} Qxc8 {[%emt 0:00:08]} 34. Rxd6+ {[%emt 0:00:03]} Rf6 {[%emt 0:00:22]} 35. Rxf6+ {[%emt 0:00:46]} Kxf6 {[%emt 0:01:48]} 36. Ke2 {[%emt 0:00:06]} Kg6 {[%emt 0:02:04]} 37. Rd1 {[%emt 0:00:04]} Qb8 {[%emt 0:00:20]} 38. Qc3 {[%emt 0:02:41]} g4 {[%emt 0:01:57]} 39. hxg4 {[%emt 0:06:25]} hxg4 {[%emt 0:01:49]} 40. Rg1 {[%emt 0:00:59]} Kh5 {[%emt 0:01:50]} 41. Qg7 {[%emt 0:02:26]} f3+ {[%emt 0:01:40]} 42. Kd1 {[%emt 0:02:35]} Qd8+ {[%emt 0:00:26]} 43. Kc1 {[%emt 0:00:10]} Qg5+ {[%emt 0:00:33]} 44. Qxg5+ {[%emt 0:00:05]} Bxg5+ {[%emt 0:00:05]} 45. Kd1 {[%emt 0:00:05]} Bh4 {[%emt 0:01:09]} 46. e5 {[%emt 0:00:33]} g3 {[%emt 0:00:30]} 47. Rxg3 {[%emt 0:01:32]} Bxg3 {[%emt 0:00:13]} 48. e6 {[%emt 0:01:39]} Kg6 {[%emt 0:00:11]} 49. b3 {[%emt 0:00:07]} c3 {[%emt 0:00:21]} 50. b4 {[%emt 0:00:06]} Kf6 {[%emt 0:00:20]} 51. a4 {[%emt 0:00:29]} Kxe6 {[%emt 0:00:05]} 52. b5 {[%emt 0:00:04]} axb5 {[%emt 0:00:11]} 53. a5 {[%emt 0:00:07]} Kd7 {[%emt 0:00:08]} 54. a6 {[%emt 0:00:30]} Kc7 {[%emt 0:00:06]} 55. a7 {[%emt 0:00:05]} Kb7 {[%emt 0:00:06]} 56. a8=B+ {[%emt 0:00:06]} Kxa8 {[%emt 0:00:04]} 57. Kc1 {[%emt 0:00:08]} f2 {[%emt 0:00:09]} 58. Kb1 {[%emt 0:00:01]} f1=Q+ {[%emt 0:00:12]} 59. Ka2 {[%emt 0:00:05]} Qc4+ {[%emt 0:00:30]} 60. Kb1 {[%emt 0:00:41]} Bf4 {[%emt 0:00:27]} 61. Ka1 {[%emt 0:00:07]} Qb4 {[%emt 0:00:11]} 62. Ka2 {[%emt 0:00:04]} Qb2# {[%emt 0:00:02]} 0-1